[Event "FRA-ch Youth U12 2019"]
[Site "Hyeres"]
[Date "2019.04.21"]
[Round "9.3"]
[White "Deblock, Kien"]
[Black "Kuhn, Clement"]
[Result "1/2-1/2"]
[ECO "B01"]
[WhiteElo "1642"]
[BlackElo "1936"]
[Annotator "NA"]
[PlyCount "144"]
[EventDate "2019.04.14"]
[EventType "swiss"]
[EventCountry "FRA"]
[SourceTitle "playchess.com"]
[Source "ChessBase"]
[SourceQuality "1"]
[TimeControl "5400+30"]

1. e4 {[%emt 0:00:00]} d5 {[%emt 0:00:00]} 2. exd5 {[%emt 0:00:00]} Nf6 {[%emt 0:00:00]} 3. Nf3 {[%emt 0:00:00]} Nxd5 {[%emt 0:00:00]} 4. d4 {[%emt 0:00:00]} Bf5 {[%emt 0:00:00]} 5. Bd3 {[%emt 0:00:00]} Bxd3 {[%emt 0:01:53]} 6. Qxd3 {[%emt 0:00:00]} e6 {[%emt 0:01:41]} 7. O-O {[%emt 0:00:19]} c6 {[%emt 0:04:13]} 8. c4 {[%emt 0:00:50]} Nf6 {[%emt 0:00:23]} 9. Nc3 {[%emt 0:00:52]} Be7 {[%emt 0:01:22]} 10. Bf4 {[%emt 0:01:13]} O-O {[%emt 0:00:16]} 11. Rfd1 {[%emt 0:02:49]} Na6 {[%emt 0:12:31]} 12. a3 {[%emt 0:10:16]} h6 {[%emt 0:04:38]} 13. b4 {[%emt 0:04:03]} Nc7 {[%emt 0:03:28]} 14. b5 {[%emt 0:22:51]} cxb5 {[%emt 0:08:47]} 15. Bxc7 {[%emt 0:00:19]} Qxc7 {[%emt 0:00:06]} 16. Nxb5 {[%emt 0:00:06]} Qa5 {[%emt 0:05:22]} 17. d5 {[%emt 0:13:13]} exd5 {[%emt 0:05:37]} 18. cxd5 {[%emt 0:00:12]} Rfd8 {[%emt 0:03:21]} 19. Qb3 {[%emt 0:04:33]} a6 {[%emt 0:11:27]} 20. d6 {[%emt 0:05:05]} Bf8 {[%emt 0:01:43]} 21. Nc7 {[%emt 0:01:06]} Rab8 {[%emt 0:02:16]} 22. Nd5 {[%emt 0:04:58]} Rxd6 {[%emt 0:01:35]} 23. Nxf6+ {[%emt 0:00:40]} Rxf6 {[%emt 0:00:12]} 24. Rd7 {[%emt 0:00:47]} Qb6 {[%emt 0:06:05]} 25. Rb1 {[%emt 0:02:01]} Qxb3 {[%emt 0:01:10]} 26. Rxb3 {[%emt 0:00:06]} Rd6 {[%emt 0:00:43]} 27. Ne5 {[%emt 0:01:35]} Rd8 {[%emt 0:05:14]} 28. Rxd8 {[%emt 0:00:45]} Rxd8 {[%emt 0:00:10]} 29. Kf1 {[%emt 0:00:28]} b5 {[%emt 0:00:46]} 30. Nc6 {[%emt 0:03:36]} Rd1+ {[%emt 0:05:09]} 31. Ke2 {[%emt 0:00:06]} Ra1 {[%emt 0:00:12]} 32. Nb4 {[%emt 0:01:31]} f5 {[%emt 0:04:00]} 33. Nxa6 {[%emt 0:03:08]} Rxa3 {[%emt 0:01:10]} 34. Rxa3 {[%emt 0:00:10]} Bxa3 {[%emt 0:00:04]} 35. Nc7 {[%emt 0:00:23]} b4 {[%emt 0:02:28]} 36. Kd3 {[%emt 0:00:41]} b3 {[%emt 0:02:19]} 37. Nb5 {[%emt 0:00:07]} Bc5 {[%emt 0:03:34]} 38. f3 {[%emt 0:00:07]} Bg1 {[%emt 0:00:23]} 39. h3 {[%emt 0:01:14]} Kf7 {[%emt 0:01:16]} 40. Kc3 {[%emt 0:00:17]} Ke6 {[%emt 0:00:08]} 41. Kxb3 {[%emt 0:00:30]} Bf2 {[%emt 0:01:15]} 42. Kc3 {[%emt 0:00:21]} Ke5 {[%emt 0:00:19]} 43. Kd3 {[%emt 0:00:24]} Kf4 {[%emt 0:00:46]} 44. Ke2 {[%emt 0:02:04]} Bc5 {[%emt 0:00:19]} 45. Nc7 {[%emt 0:01:05]} Ke5 {[%emt 0:00:54]} 46. g4 {[%emt 0:01:03]} g5 {[%emt 0:01:04]} 47. Ne8 {[%emt 0:01:08]} Bf8 {[%emt 0:01:16]} 48. Nc7 {[%emt 0:00:19]} Bg7 {[%emt 0:00:56]} 49. Ne8 {[%emt 0:00:44]} Bf8 {[%emt 0:00:24]} 50. Nc7 {[%emt 0:00:09]} fxg4 {[%emt 0:00:11]} 51. hxg4 {[%emt 0:00:20]} Kd6 {[%emt 0:00:50]} 52. Ne8+ {[%emt 0:00:10]} Ke6 {[%emt 0:00:35]} 53. Nc7+ {[%emt 0:00:08]} Ke5 {[%emt 0:00:16]} 54. Ne8 {[%emt 0:00:30]} Kf4 {[%emt 0:00:57]} 55. Nf6 {[%emt 0:00:36]} Bg7 {[%emt 0:00:46]} 56. Ne8 {[%emt 0:00:12]} Bh8 {[%emt 0:00:27]} 57. Nd6 {[%emt 0:00:09]} Bg7 {[%emt 0:00:21]} 58. Nf5 {[%emt 0:00:08]} Bf8 {[%emt 0:00:06]} 59. Kf2 {[%emt 0:00:17]} h5 {[%emt 0:00:21]} 60. Kg2 {[%emt 0:00:34]} h4 {[%emt 0:01:05]} 61. Nd4 {[%emt 0:00:12]} Be7 {[%emt 0:00:30]} 62. Nf5 {[%emt 0:00:47]} Bf6 {[%emt 0:00:08]} 63. Nh6 {[%emt 0:00:10]} Ke3 {[%emt 0:00:53]} 64. Nf5+ {[%emt 0:00:06]} Ke2 {[%emt 0:00:27]} 65. Nh6 {[%emt 0:00:16]} Be5 {[%emt 0:00:35]} 66. Nf5 {[%emt 0:00:15]} h3+ {[%emt 0:00:41]} 67. Kxh3 {[%emt 0:00:05]} Kxf3 {[%emt 0:00:08]} 68. Ne7 {[%emt 0:00:16]} Bf4 {[%emt 0:00:38]} 69. Ng6 {[%emt 0:00:06]} Ke4 {[%emt 0:00:22]} 70. Nf8 {[%emt 0:00:09]} Kf3 {[%emt 0:00:37]} 71. Ne6 {[%emt 0:00:08]} Ke4 {[%emt 0:00:06]} 72. Kg2 {[%emt 0:00:25]} Ke5 {[%emt 0:02:05]} 1/2-1/2

[Event "FRA-ch Youth U12 2019"]
[Site "Hyeres"]
[Date "2019.04.21"]
[Round "9.4"]
[White "Robert, Maxime"]
[Black "Mekhane, Adam"]
[Result "0-1"]
[ECO "B22"]
[WhiteElo "1457"]
[BlackElo "1995"]
[Annotator "NA"]
[PlyCount "34"]
[EventDate "2019.04.14"]
[EventType "swiss"]
[EventCountry "FRA"]
[SourceTitle "playchess.com"]
[Source "ChessBase"]
[SourceQuality "1"]
[TimeControl "5400+30"]

1. e4 {[%emt 0:00:00]} c5 {[%emt 0:00:00]} 2. Nf3 {[%emt 0:00:16]} Nc6 {[%emt 0:00:00]} 3. c3 {[%emt 0:01:53]} Nf6 {[%emt 0:00:06]} 4. d4 {[%emt 0:00:59]} cxd4 {[%emt 0:01:34]} 5. cxd4 {[%emt 0:00:09]} Nxe4 {[%emt 0:01:25]} 6. Be2 {[%emt 0:00:47]} d5 {[%emt 0:04:17]} 7. O-O {[%emt 0:01:29]} g6 {[%emt 0:02:06]} 8. Nc3 {[%emt 0:02:50]} Bg7 {[%emt 0:06:52]} 9. Bf4 {[%emt 0:03:24]} O-O {[%emt 0:02:42]} 10. Rc1 {[%emt 0:03:49]} Bg4 {[%emt 0:11:02]} 11. Ne5 {[%emt 0:08:16]} Bxe2 {[%emt 0:02:40]} 12. Nxe2 {[%emt 0:00:23]} Rc8 {[%emt 0:07:38]} 13. Qa4 {[%emt 0:04:09]} Nxe5 {[%emt 0:06:51]} 14. Bxe5 {[%emt 0:01:10]} Qb6 {[%emt 0:16:00]} 15. Qa3 {[%emt 0:03:30]} Rxc1 {[%emt 0:06:06]} 16. Rxc1 {[%emt 0:00:58]} Bxe5 {[%emt 0:01:30]} 17. Rf1 {[%emt 1:04:28]} Bg7 0-1